Cogmind - Beta 16 @@@ ROGUE MODE // 2025.10.29 @ 09:17:09 Player: Zoe Result: Destroyed by B-75 Beast with Heavy Plasma Cannon Performance ------------- Evolutions (4) 2000 Regions Visited (7) 1400 Robots Destroyed (27) 135 Value Destroyed (804) 804 Prototype IDs (0) 0 Alien Tech Used (0) 0 Bonus (869) 869 TOTAL SCORE: 5208 Bonus ------- Follower Combat Kills 369 Entered DSFs 500 Cogmind --------- Core Integrity 0/850 Matter 300/300 Energy 100/100 System Corruption 17% Temperature Cool (12) Movement Core (50) Location -6/Extension Parts ------- > --- POWER (1) -------- (None) > --- PROPULSION (6) --- (None) > --- UTILITY (6) ------ (None) > --- WEAPON (2) ------- (None) > --- INVENTORY (5) ---- Improved Deuterium Engine Light Treads Gatling Laser Coil Gun Peak State ------------ > --- POWER ------------ Angular Momentum Engine > --- PROPULSION ------- Carbon-fiber Leg Carbon-fiber Leg Flexi-carbon Leg > --- UTILITY ---------- Sensor Array IFF Parser > --- WEAPON ----------- Coil Gun Coil Gun > --- INVENTORY -------- Light Angular Momentum Engine Coil Gun Heavy Pick [Rating: 33] Favorites ----------- Power Light Ion Engine Engine Light Ion Engine Power Core Fission Core Propulsion Light Treads Treads Light Treads Leg Carbon-fiber Leg Hover Unit Improved Gravmag System Flight Unit Flight Unit Utility Sensor Array Device Sensor Array Storage Small Storage Unit Processor Signal Interpreter Hackware System Shield Protection Improved Light Armor Plating Weapon Gatling Laser Energy Gun Gatling Laser Ballistic Gun Coil Gun Ballistic Cannon Advanced Assault Cannon Special Weapon Mining Laser Slashing Weapon Mining Claw Piercing Weapon Heavy Pick Build | -11 -10 -9 -8 -7 -7 -6 -6 ------- Run | Yrd Mat Mat Mat Fac DSF Fac Ext Slots Evolved 8 | . . 2 2 2 . 2 . Power . | . . . . . . . . Propulsion 4 | . . . 2 1 . 1 . Utility 4 | . . 2 . 1 . 1 . Weapon . | . . . . . . . . Parts Attached 56 | 8 2 10 4 4 1 6 21 Power 6 | 1 . . 1 1 . 1 2 Engine 4 | 1 . . 1 . . . 2 Core 2 | . . . . 1 . 1 . Reactor . | . . . . . . . . Propulsion 18 | 3 . 2 1 1 . 2 9 Treads 9 | 2 . . . 1 . . 6 Leg 4 | 1 . . . . . . 3 Wheel . | . . . . . . . . Hover 2 | . . . . . . 2 . Flight 3 | . . 2 1 . . . . Utility 15 | 2 1 2 2 1 . 2 5 Device 9 | 1 1 1 2 . . 2 2 Storage 1 | 1 . . . . . . . Processor 1 | . . 1 . . . . . Hackware 1 | . . . . 1 . . . Protection 3 | . . . . . . . 3 Artifact . | . . . . . . . . Weapon 17 | 2 1 6 . 1 1 1 5 Energy Gun 5 | 1 . 2 . . . . 2 Energy Cannon . | . . . . . . . . Ballistic Gun 7 | 1 . 2 . . 1 . 3 Ballistic Cannon 1 | . . . . 1 . . . Launcher . | . . . . . . . . Special Weapon 1 | . 1 . . . . . . Impact Weapon . | . . . . . . . . Slashing Weapon 2 | . . 2 . . . . . Piercing Weapon 1 | . . . . . . 1 . Special Melee Weapon . | . . . . . . . . Unidentified Prototypes . | . . . . . . . . Parts Lost 39 | . . 5 3 . 6 . 25 Power 5 | . . 1 . . 1 . 3 Propulsion 15 | . . . 3 . 1 . 11 Utility 11 | . . 2 . . 2 . 7 Weapon 8 | . . 2 . . 2 . 4 Highest Loss Streak 8 | . . 5 3 . 6 . 8 To Critical Strikes . | . . . . . . . . Average Backups 4 | 4 7 6 2 1 1 3 3 Power . | . 1 1 . . . . 1 Propulsion 1 | 1 2 2 . . . . . Utility . | . 2 1 . . . . . Weapon 1 | 1 1 1 1 1 1 2 1 Tool/Special . | . . . . . . . . Unused Backups 7 | . 2 . . . . 2 3 Power 1 | . . . . . . . 1 Propulsion 3 | . 1 . . . . . 2 Utility . | . . . . . . . . Weapon 3 | . 1 . . . . 2 . Tool/Special . | . . . . . . . . Average Slot Usage (%) 64 | . 100 97 56 45 43 30 53 Engine 5 | . 14 10 7 . . . 4 Core 1 | . . . . 6 4 3 . Treads 15 | . 28 21 . 6 5 . 17 Hover 1 | . . . . . . 8 . Flight 1 | . . . 23 . . . . Device 12 | . 14 21 15 13 14 12 6 Storage 3 | . 14 11 . . . . . Processor 2 | . . 11 8 . . . . Protection 3 | . . . . . . . 8 Energy Gun 5 | . 5 6 1 5 3 . 6 Ballistic Gun 5 | . 14 7 . . 2 . 4 Special Weapon 1 | . 8 2 . . . . . Slashing Weapon 1 | . . 4 . . . . . Peak Build Rating 33 | 7 8 13 13 18 19 29 33 Average Rating 16 | 5 7 10 8 16 14 20 24 On Entrance 8 | . 7 8 5 1 18 1 29 Avg Prop Armor Cover (%) 6 | . . . 6 . . . . Naked Turns 32 | . . . 10 4 . . 18 Heaviest Build 31 | 12 12 16 10 16 16 15 31 Greatest Support 100 | 40 40 40 12 23 23 19 100 Greatest Overweight (x) 7 | 2 . . 1 . 3 . 7 Average Overweight (x) . | . . . . . . . . Largest Inventory Capacity 8 | 8 8 8 8 5 5 5 5 Average Capacity 6 | 7 8 8 5 5 5 5 5 Most Carried 8 | 7 8 8 5 5 2 5 5 Average Carried 4 | 4 7 7 2 1 1 3 3 Final Capacity 8 | 8 8 8 5 5 5 5 5 Final Carried 8 | 6 8 6 5 1 2 5 4 Class Distribution -------------------- 72% | Mutant 23% | Scavenger-Mutant 3% | Scout Dominant Class ---------------- Mutant | -10/Materials Mutant | -9/Materials Scout | -8/Materials Mutant | -7/Factory Mutant | -7/DSF Mutant | -6/Factory Scavenger-Mutant | -6/Extension Resources | -11 -10 -9 -8 -7 -7 -6 -6 ----------- Run | Yrd Mat Mat Mat Fac DSF Fac Ext Matter Collected 1067 | 334 . 50 7 . 61 106 509 Remotely . | . . . . . . . . Salvage Created 1161 | 242 . 66 . . 53 56 744 Parts 71 | 20 . 9 . . 3 6 33 Haulers Intercepted . | . . . . . . . . Recyclers Shooed . | . . . . . . . . Parts Field Recycled . | . . . . . . . . Retrieved Matter . | . . . . . . . . Parts Self-Destructed . | . . . . . . . . Prevented . | . . . . . . . . Parts Restored . | . . . . . . . . Kills | -11 -10 -9 -8 -7 -7 -6 -6 ------- Run | Yrd Mat Mat Mat Fac DSF Fac Ext Combat Hostiles Destroyed 14 | . . 1 . . 1 . 12 Melee 2 | . . . . . 1 . 1 Guns 11 | . . 1 . . . . 10 Classes Destroyed 8 | 3 . 2 . . 1 . 2 Worker 4 | 2 . . . . . 2 . Tunneler 7 | 6 . . . . . 1 . Recycler 1 | 1 . . . . . . . Operator 1 | . . 1 . . . . . Grunt 4 | . . . . . . . 4 Sentry 7 | . . 1 . . . . 6 Specialist 1 | . . . . . 1 . . Thug 1 | . . . . . . . 1 Savage 1 | . . . . . . . 1 Best Kill Streak 4 | 4 . 1 . . 1 3 4 Combat Bots Only 4 | . . 1 . . 1 . 4 Max Kills in Single Turn 1 | 1 . 1 . . 1 1 1 Gunslinging . | . . . . . . . . Exploded . | . . . . . . . . Melee 1 | . . . . . 1 . 1 Uniques/NPCs Destroyed . | . . . . . . . . Combat | -11 -10 -9 -8 -7 -7 -6 -6 -------- Run | Yrd Mat Mat Mat Fac DSF Fac Ext Hostile Shots Fired 576 | . . 55 66 . 45 5 405 Missed 211 | . . 15 28 . 12 2 154 Hits 365 | . . 40 38 . 33 3 251 Melee 8 | . . 8 . . . . . Projectile 357 | . . 32 38 . 33 3 251 Critical Strikes 10 | . . 2 2 . 3 . 3 Damage Taken 5539 | . . 648 545 . 968 59 3319 Core 1932 | . . 160 408 . 499 . 865 Absorbed by Shields . | . . . . . . . . Core Remaining (%) 62 | 100 100 60 25 . 28 . . Volleys Fired 80 | 18 8 17 . . 2 . 35 Largest 2 | 2 2 2 . . 2 . 2 Hottest 160 | 60 120 85 . . 65 . 160 Shots Fired 135 | 36 9 21 . . 4 . 65 Gun 127 | 36 3 21 . . 2 . 65 Cannon 2 | . . . . . 2 . . Launcher . | . . . . . . . . Special 6 | . 6 . . . . . . Kinetic 83 | 18 3 11 . . 4 . 47 Thermal 52 | 18 6 10 . . . . 18 Explosive . | . . . . . . . . Electromagnetic . | . . . . . . . . Robot Hit Streak 27 | 8 . 5 . . 3 . 27 Robot Miss Streak 4 | 3 4 1 . . 1 . 3 Penetration Max 2 | . . . . . . . 2 Secondary Targets 4 | . . . . . . . 4 Max Gunslinging Chain 1 | . . . . . . . 1 Shots Hit Robots 107 | 23 . 16 . . 4 3 61 Core Hits 54 | 10 . 4 . . 1 2 37 Critical Kills 1 | 1 . . . . . . . Critical Parts Destroyed . | . . . . . . . . Critical Strikes 2 | 1 . . . . . . 1 Destroy 1 | 1 . . . . . . . Impale 1 | . . . . . . . 1 Melee Attacks 30 | . . 9 . . . 8 13 Impact . | . . . . . . . . Slashing 9 | . . 9 . . . . . Piercing 21 | . . . . . . 8 13 Sneak Attacks 3 | . . . . . . 3 . Combat Hostiles . | . . . . . . . . Follow-up Attacks . | . . . . . . . . Damage Inflicted 2707 | 267 . 290 . . 91 166 1893 Guns 2089 | 267 . 167 . . 44 . 1611 Cannons 46 | . . . . . 46 . . Explosions . | . . . . . . . . Melee 564 | . . 123 . . . 166 275 Ramming 8 | . . . . . 1 . 7 Kinetic 1433 | 158 . 105 . . 90 . 1080 Thermal 702 | 109 . 62 . . . . 531 Explosive . | . . . . . . . . Electromagnetic . | . . . . . . . . Impact . | . . . . . . . . Slashing 123 | . . 123 . . . . . Piercing 441 | . . . . . . 166 275 Highest Corruption 17 | . . . . . . . 17 Average Corruption 15 | . . . . . . . 15 Corruption Purged . | . . . . . . . . Corruption Blocked . | . . . . . . . . Effects 1 | . . . . . . . 1 Data Loss (minor) 1 | . . . . . . . 1 Overload Shots . | . . . . . . . . Overflow Damage 24 | . . . . . . 24 . Projectiles . | . . . . . . . . Explosions . | . . . . . . . . Melee 24 | . . . . . . 24 . Knockbacks . | . . . . . . . . Impact . | . . . . . . . . Kinetic . | . . . . . . . . Secondary . | . . . . . . . . Self-Inflicted Damage 3 | . . . . . . . 3 Shots . | . . . . . . . . Rammed 3 | . . . . . . . 3 Targets Rammed 4 | . . . . . 1 . 3 Kicked . | . . . . . . . . Crushed 1 | . . . . . 1 . . Highest Temperature 297 | . 40 108 14 . . . 297 Average Temperature 57 | . 13 40 14 . . . 79 Received Heat Transfer 1784 | . . 165 162 . 144 27 1286 Effects 4 | . . . . . . . 4 Energy Bleed 1 | . . . . . . . 1 Interference 3 | . . . . . . . 3 Siege Activations . | . . . . . . . . Martial Activations . | . . . . . . . . Shielding Activations . | . . . . . . . . Robots Disrupted . | . . . . . . . . Combat Hostiles . | . . . . . . . . Robots Corrupted . | . . . . . . . . Combat Hostiles . | . . . . . . . . Parts Fried . | . . . . . . . . Impact Corruptions . | . . . . . . . . Robots Melted 1 | . . . . . . . 1 Combat Hostiles 1 | . . . . . . . 1 Parts Melted 3 | . . 1 . . . . 2 Heat Transferred 1623 | 250 . 148 . . . . 1225 Parts Sabotaged . | . . . . . . . . Parts Stolen . | . . . . . . . . Parts Stripped . | . . . . . . . . Power Chain Reactions . | . . . . . . . . Alert | -11 -10 -9 -8 -7 -7 -6 -6 ------- Run | Yrd Mat Mat Mat Fac DSF Fac Ext Maximum Alert Level . | . . . . . . . . Low Security (%) 100 | 100 100 100 100 100 100 100 100 Level 1 . | . . . . . . . . Level 2 . | . . . . . . . . Level 3 . | . . . . . . . . Level 4 . | . . . . . . . . Level 5 . | . . . . . . . . High Security . | . . . . . . . . Max Security . | . . . . . . . . Peak Influence 113 | 10 12 30 102 39 20 58 113 Initial 39 | . . . . 39 3 . 22 Average 14 | 1 1 2 27 11 3 12 28 Influence Increases 983 | 45 29 53 147 5 20 107 577 Destroy 0b10 Robot/C 460 | . . 20 . . 20 . 420 Destroy 0b10 Robot/NC 75 | 45 . 5 . . . 15 10 Destroy Leader 50 | . . 10 . . . . 40 Allied During Kill 75 | . . . . . . . 75 Successful Hack 76 | . 25 2 12 5 . 27 5 Destroy Structure 22 | . 4 1 . . . 5 12 Partial Spotted 30 | . . . 30 . . . . Lose Combat Pursuer 195 | . . 15 105 . . 60 15 Influence Decreases 983 | 45 29 53 60 87 25 60 624 Entered New Map 75 | . . . . 48 2 . 25 Time Decay 485 | 45 29 38 30 39 . 60 244 Lost Part 243 | . . 15 30 . 23 . 175 Lost Ally 180 | . . . . . . . 180 Squads Dispatched 12 | . . 1 5 . 2 1 3 Investigation 8 | . . 1 3 . . 1 3 Extermination . | . . . . . . . . Reinforcement 4 | . . . 2 . 2 . . Assault . | . . . . . . . . Garrison . | . . . . . . . . Intercept . | . . . . . . . . Searches Triggered . | . . . . . . . . Construction Impeded . | . . . . . . . . Haulers Reinforced . | . . . . . . . . Active Scanning Responses . | . . . . . . . . Cargo Convoy Interrupts . | . . . . . . . . Stealth | -11 -10 -9 -8 -7 -7 -6 -6 --------- Run | Yrd Mat Mat Mat Fac DSF Fac Ext Distress Signals 3 | . . 1 1 . . . 1 Communications Jammed . | . . . . . . . . Distress Signals . | . . . . . . . . Times Spotted 64 | . 1 9 24 . 5 5 20 Peak Tracking Total 15 | . 1 5 15 . 4 3 4 Tactical Retreats 6 | . . 1 2 . . 2 1 Traps | -11 -10 -9 -8 -7 -7 -6 -6 ------- Run | Yrd Mat Mat Mat Fac DSF Fac Ext Traps Triggered 1 | . . . 1 . . . . Indirectly . | . . . . . . . . Trap Hack Attempts . | . . . . . . . . Triggered . | . . . . . . . . Disarmed . | . . . . . . . . Reprogrammed . | . . . . . . . . Reused . | . . . . . . . . Traps Extracted . | . . . . . . . . Installed 5 | . . . . . 5 . . Triggered . | . . . . . . . . Machines | -11 -10 -9 -8 -7 -7 -6 -6 ---------- Run | Yrd Mat Mat Mat Fac DSF Fac Ext Machines Disabled . | . . . . . . . . Max in Single Turn . | . . . . . . . . Machines Repaired . | . . . . . . . . Machines Dismantled . | . . . . . . . . Machines Sabotaged . | . . . . . . . . Overloaded Fab Kills . | . . . . . . . . Hacking | -11 -10 -9 -8 -7 -7 -6 -6 --------- Run | Yrd Mat Mat Mat Fac DSF Fac Ext Machines Accessed 14 | . 3 2 3 1 . 2 3 Terminals 14 | . 3 2 3 1 . 2 3 Fabricators . | . . . . . . . . Repair Stations . | . . . . . . . . Recycling Units . | . . . . . . . . Scanalyzers . | . . . . . . . . Garrison Access . | . . . . . . . . Total Hacks 50 | . 15 6 13 1 . 8 7 Successful 29 | . 9 4 9 1 . 5 1 Failed 21 | . 6 2 4 . . 3 6 Catastrophic 4 | . 1 . . . . 1 2 Database Lockouts . | . . . . . . . . Manual 33 | . 8 5 9 . . 7 4 Terminals 50 | . 15 6 13 1 . 8 7 Fabricators . | . . . . . . . . Repair Stations . | . . . . . . . . Recycling Units . | . . . . . . . . Scanalyzers . | . . . . . . . . Garrison Access . | . . . . . . . . Terminal Hacks 13 | . 6 1 3 1 . 2 . Record 1 | . 1 . . . . . . Robot Analysis 1 | . 1 . . . . . . Open DSF 1 | . . . . 1 . . . Emergency Access Points 2 | . 1 . 1 . . . . Terminal Index 3 | . 1 1 1 . . . . Alert Level 1 | . . . 1 . . . . Locate Traps 1 | . 1 . . . . . . Zone Layout 3 | . 1 . . . . 2 . Fabricator Hacks . | . . . . . . . . Repair Station Hacks . | . . . . . . . . Recycling Unit Hacks . | . . . . . . . . Scanalyzer . | . . . . . . . . Garrison Access Hacks . | . . . . . . . . Unauthorized Hacks 16 | . 3 3 6 . . 3 1 Terminals 16 | . 3 3 6 . . 3 1 Track 5 | . . 1 3 . . 1 . Botnet 11 | . 3 2 3 . . 2 1 Fabricators . | . . . . . . . . Repair Stations . | . . . . . . . . Recycling Units . | . . . . . . . . Scanalyzers . | . . . . . . . . Garrison Access . | . . . . . . . . Data Cores Recovered 1 | . . 1 . . . . . Used . | . . . . . . . . Hacking Detections 12 | . 3 2 3 . . 1 3 Full Trace Events 11 | . 2 2 3 . . 1 3 Feedback Events . | . . . . . . . . Feedback Blocked . | . . . . . . . . Robot Schematics Acquired . | . . . . . . . . Robots Built . | . . . . . . . . Authchips . | . . . . . . . . Time . | . . . . . . . . Total Robot Build Rating . | . . . . . . . . Part Schematics Acquired . | . . . . . . . . Parts Built . | . . . . . . . . Authchips . | . . . . . . . . Time . | . . . . . . . . Total Part Build Rating . | . . . . . . . . Part Studies Acquired . | . . . . . . . . Parts Repaired . | . . . . . . . . Time . | . . . . . . . . Parts Recycled . | . . . . . . . . Recycled Matter . | . . . . . . . . Retrieved Matter . | . . . . . . . . Retrieved Components . | . . . . . . . . Parts Scanalyzed . | . . . . . . . . Part Schematics Acquired . | . . . . . . . . Parts Damaged . | . . . . . . . . Bothacking | -11 -10 -9 -8 -7 -7 -6 -6 ------------ Run | Yrd Mat Mat Mat Fac DSF Fac Ext Used RIF Installer . | . . . . . . . . Robots Hacked . | . . . . . . . . Non-combat . | . . . . . . . . Combat . | . . . . . . . . Robot Hacks Applied . | . . . . . . . . Relay Couplers Released . | . . . . . . . . Fabnet Peak Effective % . | . . . . . . . . Robots Rewired 10 | . . . . . . . 10 Allies Hacked . | . . . . . . . . Hacks Repelled . | . . . . . . . . Allies | -11 -10 -9 -8 -7 -7 -6 -6 -------- Run | Yrd Mat Mat Mat Fac DSF Fac Ext Total Allies 10 | . . . . . . . 10 Largest Group 7 | . . . . . . . 7 Highest-Rated Group 222 | . . . . . . . 222 Highest-Rated Ally 39 | . . . . . . . 39 Total Orders . | . . . . . . . . Ally Attacks 81 | . . . . . . . 81 Total Damage 1215 | . . . . . . . 1215 Kills 11 | . . . . . . . 11 Allies Corrupted . | . . . . . . . . Allies Melted . | . . . . . . . . Intel | -11 -10 -9 -8 -7 -7 -6 -6 ------- Run | Yrd Mat Mat Mat Fac DSF Fac Ext Active Infowar (turns) 1699 | 11 261 552 104 149 84 333 205 Sensors 1451 | . 184 522 104 149 84 332 76 IFF 500 | . . . . . . 295 205 Terrain 316 | . . . 99 149 68 . . Seismic 638 | 11 77 550 . . . . . Robot Analysis Total 1 | . 1 . . . . . . Derelict Logs Recovered . | . . . . . . . . Drone Launches . | . . . . . . . . Drone Recoveries . | . . . . . . . . Exploration | -11 -10 -9 -8 -7 -7 -6 -6 ------------- Run | Yrd Mat Mat Mat Fac DSF Fac Ext Turns Passed 2716 | 248 263 557 118 157 84 333 956 Spaces Moved 1581 | 113 128 197 190 80 60 432 381 Core 199 | 17 . . 23 6 28 88 37 Treads 737 | 96 128 160 . 74 32 . 247 Legs 63 | . . . . . . . 63 Wheels . | . . . . . . . . Hover 378 | . . . . . . 344 34 Flight 204 | . . 37 167 . . . . Fastest Speed 34 | 50 160 37 34 50 50 50 50 Average Speed 107 | 154 160 136 38 151 114 54 143 Slowest Speed 400 | 160 160 160 120 160 200 56 400 Overloaded Moves . | . . . . . . . . Propulsion Burnouts . | . . . . . . . . Robots Hopped . | . . . . . . . . Potential Cave-ins . | . . . . . . . . Cave-ins Triggered 1 | . . . . . . . 1 Exploration Rate (%) 28 | 6 27 22 37 2 83 13 39 Regions Visited 7 Branch Regions 1 Pre-discovered Areas . | . . . . . . . . Known Exits Taken 2 | . . 1 . 1 . . . Unknown Exits Taken 4 | 1 1 . 1 . . 1 . Scrap Searched . | . . . . . . . . Spaces Dug 13 | . 5 1 . . . 5 2 Terrain Destroyed 16 | . 5 1 . . . 5 5 Melee 8 | . . 1 . . . 5 2 Projectile 8 | . 5 . . . . . 3 AOE . | . . . . . . . . Terrain Rammed . | . . . . . . . . Walls Destroyed . | . . . . . . . . Machines Disabled . | . . . . . . . . Actions | -11 -10 -9 -8 -7 -7 -6 -6 --------- Run | Yrd Mat Mat Mat Fac DSF Fac Ext Total 2391 | 152 166 449 237 115 69 512 691 Wait 426 | . 21 202 30 26 . 52 95 Move 1575 | 112 127 196 189 80 59 431 381 Hop . | . . . . . . . . Pick Up 57 | 13 5 6 1 2 1 11 18 Fast Attach 6 | . . 2 . 1 . 1 2 Attach 50 | 8 . 4 8 6 . 4 20 Detach 10 | 1 . . 7 . . . 2 Swap 14 | . 2 6 . . 1 1 4 Drop 17 | . 3 7 2 . . 4 1 Fire 80 | 18 8 17 . . 2 . 35 Melee 30 | . . 9 . . . 8 13 Ram 3 | . . . . . . . 3 Kick . | . . . . . . . . Crush 1 | . . . . . 1 . . Escape Stasis . | . . . . . . . . Rewire 117 | . . . . . . . 117 Trap 5 | . . . . . 5 . . Miscellaneous . | . . . . . . . . Route ------- -11/Scrapyard -10/Materials -9/Materials (discovered 2 exits: *Mat / [*Min]) -8/Materials -7/Factory -7/DSF -6/Factory -6/Extension History --------- Turn | Location | Event 34 | -11/Scrapyard | Discovered new exit (range 15) 249 | -11/Scrapyard | Entered Materials 315 | -10/Materials | Build established: Mutant 398 | -10/Materials | Discovered new exit (range 19) 512 | -10/Materials | Entered another Materials area 512 | -9/Materials | Evolved 2 slots: Utility x2 1063 | -9/Materials | Discovered new exit (range 16) 1063 | -9/Materials | Discovered new exit (range 8) 1069 | -9/Materials | Identified exit to Materials 1069 | -9/Materials | Entered another Materials area 1069 | -8/Materials | Evolved 2 slots: Propulsion x2 1095 | -8/Materials | Lost 5 parts (1p2u2w) 1180 | -8/Materials | Discovered new exit (range 13) 1182 | -8/Materials | Core integrity fell below 50% 1187 | -8/Materials | Entered Factory 1187 | -7/Factory | Evolved 2 slots: Propulsion x1, Utility x1 1203 | -7/Factory | Lost 3 parts (3n) 1344 | -7/Factory | Identified exit to DSF 1344 | -7/Factory | Entered DSF 1373 | -7/DSF | Additional patrols routed to DSF 1407 | -7/DSF | Core integrity fell below 50% 1415 | -7/DSF | Discovered new exit (range 16) 1428 | -7/DSF | Entered Factory 1428 | -6/Factory | Evolved 2 slots: Propulsion x1, Utility x1 1443 | -6/Factory | Lost 6 parts (1p1n2u2w) 1756 | -6/Factory | Discovered new exit (range 9) 1761 | -6/Factory | Entered Extension 1848 | -6/Extension | Lost 4 parts (1p2n1u) 1997 | -6/Extension | Lost 5 parts (3n2u) 2180 | -6/Extension | Lost 5 parts (1p1n1u2w) 2473 | -6/Extension | Build established: Scavenger-Mutant 2563 | -6/Extension | Spotted B-75 Beast 2565 | -6/Extension | Lost 4 allies 2691 | -6/Extension | Crushed by falling debris 2691 | -6/Extension | Core integrity fell below 50% 2691 | -6/Extension | System corruption reached 10% 2706 | -6/Extension | Core integrity fell below 20% 2711 | -6/Extension | Disrupted transfer network 2717 | -6/Extension | Destroyed by B-75 Beast with Heavy Plasma Cannon Last Messages --------------- 02691_ Lgt. Treads destroyed. 02691_ System corrupted by crushing effect (+5). 02691_ Hvy. Pick destroyed. 02691_ System corrupted by crushing effect (+3). 02691_ Lgt. Treads destroyed. 02691_ System corrupted by crushing effect (+5). 02695_ Critical hit (Meltdown: +320). 02695_ Imp. Heat Sink blasted off. 02698_ System corrupted: Component data lost. 02699_ Imp. Light Armor Plating destroyed. 02704_ U-05 Engineer builds a Door. 02707_ Knocked back. 02708_ U-05 Engineer builds a Wall. 02708_ Slammed into U-05 Engineer. [Achievement: For Emergencies Only] 02709_ Slammed into U-05 Engineer. 02709_ Destabilizing: System corrupted (+2). 02710_ Slammed into U-05 Engineer. 02711_ ALERT: Persistent threat to transfer network, dispatching additional forces. Map ----- +----------------------------------------------------+ | | | | | | | | | | | | | | | | | | | | | | | | | | | ?????????????????????????????????????????????????? | | ######???????????????????????????????????????????? | | #???#######????????#######??????????????????? | | ##### #???###??# ] ! #??????????????????? | | %! #####;#### / !#??????????????????? | | + [!#??????????????????? | | % ### # #??????????????????? | | ##"## #?# ###+###??????????????????? | | #???#######?# ^ ^ #????????????????????? | | # ####???????????# ^^ #????????????????????? | | #?????????????# ^ T ####?????????????????? | | ""##?????????????# #?????????????????? | | ?????????????????#% ! @ ! #?????????????????? | | ????????????######+#; ] #?????????????????? | | ????????????# [ %%% BB *R*#?????????????????? | | ????????????# BB########%#?????????????????? | | ????????????# % u# "#???# "!#?????????????????? | | ????????????# ** +%"#????#"%#?????????????????? | | ????????????# = #%%##????"["#????????????????? | | ????????????######### #???##%"#????????????????? | | ??????????????????### #????"%"#????????????????? | | ????????????????????# #????"%##????????????????? | | ????????????????????# #???#"!#?????????????????? | | ????????????????????# #???#"=#?????????????????? | | ????????????????????# #???#*[#?????????????????? | | ????????????????????#% #???#!*#?????????????????? | | ????????????????????#%% #???#"%#?????????????????? | | ????????????????????#%%!##??#"%#?????????????????? | | ????????????????????######??#"!#?????????????????? | | ???????????????????????# #??#"%#?????????????????? | | ???????????????????????###??#"!#?????????????????? | | ????????????????????????????#"%#?????????????????? | | ????????????????????????????"=!"?????????????????? | | ????????????????????????????*%%"?????????????????? | | ?????????????????????????????]! ?????????????????? | | ????????????????????????????? [ ?????????????????? | | ????????????????????????????? ?????????????????? | +----------------------------------------------------+ Best States ------------- Heat Dissipation 65 Energy Generation 18 Energy Capacity 310 Matter Stores 300 Matter Capacity 300 Sight Range 16 Robot Scan Range 15 Terrain Scan Range 16 Terrain Scan Density 10 Armor Coverage 300 Evasion (%) 63 Recoil Reduction 5 Defensive Hacking 10 Item Schematics ----------------- None Robot Schematics ------------------ None Fabricated ------------ Nothing Repaired ---------- Nothing Studied --------- None Alien Tech Used ----------------- None Achievements -------------- A New Friend DATA ERROR: Steam Global Achievement% For Emergencies Only Heavy Suspicion Organ Harvest There's More Where That Came From Window Shopping Challenges ------------ None Game ------ Seed CoreTerrainHammer Manual? 0 Play Time 00:39:22 Cumulative 51.3 hours Start 2025.10.29 @ 08:40:27 End 2025.10.29 @ 09:17:09 Sessions 1 Manual Loads 0 Difficulty Rogue Special Mode None Game No. 109 Rogue 103 Adventurer 4 Explorer 2 Win Type - Total 0 Types 0/0/0/0/0/0/0/0/0/0 Lore% 30 Gallery% 31 Achievement% 19 Wizard Run 0 Options --------- Layout 1 ASCII 0 Keyboard 0 Movement Mouse Keybinds 0 Fullscreen 1 Font 24/Smallcaps Map View 50x35 Zoom Use 0% Tactical HUD 1 Map Filters NONE Filters NONE Steam 1 RUN: 5a33ca48-e29e-4249-9b5d-417a9d551f29